[Event "1000GM Schev-G4 March 2024"]
[Site "Santa Clara"]
[Date "2024.03.11"]
[Round "5.4"]
[White "Talwalkar, Vedant"]
[Black "Jaquez, Juan Manuel"]
[Result "1/2-1/2"]
[ECO "C06"]
[WhiteElo "1996"]
[BlackElo "2170"]
[Annotator "RC"]
[PlyCount "82"]
[EventDate "2024.03.06"]
[EventType "schev"]
[EventCountry "USA"]
[SourceTitle "playchess.com"]
[Source "ChessBase"]
[SourceQuality "1"]
[TimeControl "5400+30"]

1. e4 {[%emt 0:00:03]} e6 {[%emt 0:00:08]} 2. d4 {[%emt 0:00:22]} d5 {[%emt 0:00:13]} 3. Nd2 {[%emt 0:00:04]} Nf6 {[%emt 0:00:09]} 4. e5 {[%emt 0:00:03]} Nfd7 {[%emt 0:00:14]} 5. Bd3 {[%emt 0:00:06]} c5 {[%emt 0:00:10]} 6. c3 {[%emt 0:00:03]} Nc6 {[%emt 0:00:08]} 7. Ngf3 {[%emt 0:00:04]} cxd4 {[%emt 0:00:30]} 8. cxd4 {[%emt 0:00:05]} Qb6 {[%emt 0:00:09]} 9. O-O {[%emt 0:00:10]} Nxd4 {[%emt 0:00:43]} 10. Nxd4 {[%emt 0:00:06]} Qxd4 {[%emt 0:00:10]} 11. Nf3 {[%emt 0:00:05]} Qb6 {[%emt 0:01:06]} 12. Qa4 {[%emt 0:00:05]} Qb4 {[%emt 0:02:27]} 13. Qc2 {[%emt 0:00:08]} h6 {[%emt 0:04:40]} 14. Bd2 {[%emt 0:02:09]} Qb6 {[%emt 0:00:33]} 15. a4 {[%emt 0:06:18]} a5 {[%emt 0:07:32]} 16. Rac1 {[%emt 0:00:38]} Be7 {[%emt 0:02:04]} 17. Be3 {[%emt 0:00:40]} Qd8 {[%emt 0:02:03]} 18. Bb5 {[%emt 0:03:04]} O-O {[%emt 0:02:46]} 19. Qc7 {[%emt 0:03:24]} b6 {[%emt 0:06:13]} 20. Qxd8 {[%emt 0:28:05]} Bxd8 {[%emt 0:01:29]} 21. Rxc8 {[%emt 0:01:10]} Rxc8 {[%emt 0:00:01]} 22. Bxd7 {[%emt 0:00:07]} Rc2 {[%emt 0:00:18]} 23. Rb1 {[%emt 0:03:32]} g5 {[%emt 0:05:19]} 24. h4 {[%emt 0:01:12]} Kg7 {[%emt 0:00:27]} 25. hxg5 {[%emt 0:01:59]} hxg5 {[%emt 0:00:05]} 26. Nd4 {[%emt 0:00:24]} Rc7 {[%emt 0:00:37]} 27. Bxe6 {[%emt 0:01:00]} fxe6 {[%emt 0:00:51]} 28. Nxe6+ {[%emt 0:00:03]} Kf7 {[%emt 0:00:53]} 29. Nxf8 {[%emt 0:00:15]} Kxf8 {[%emt 0:00:24]} 30. Bxb6 {[%emt 0:00:06]} Rc8 {[%emt 0:00:20]} 31. Bxd8 {[%emt 0:01:38]} Rxd8 {[%emt 0:00:02]} 32. g3 {[%emt 0:00:08]} g4 {[%emt 0:00:31]} 33. Rd1 {[%emt 0:02:41]} d4 {[%emt 0:00:35]} 34. Kg2 {[%emt 0:01:03]} Ke7 {[%emt 0:00:27]} 35. f3 {[%emt 0:00:19]} Ke6 {[%emt 0:00:58]} 36. fxg4 {[%emt 0:02:05]} Kxe5 {[%emt 0:00:12]} 37. Re1+ {[%emt 0:00:18]} Kd5 {[%emt 0:00:15]} 38. Kf3 {[%emt 0:02:00]} Rf8+ {[%emt 0:01:45]} 39. Ke2 {[%emt 0:00:33]} Rb8 {[%emt 0:00:51]} 40. Rb1 {[%emt 0:00:29]} Rb3 {[%emt 0:00:59]} 41. Kf2 {[%emt 0:00:20]} Ke5 {[%emt 0:02:11]} 1/2-1/2

[Event "1000GM Schev-G4 March 2024"]
[Site "Santa Clara"]
[Date "2024.03.11"]
[Round "5.5"]
[White "Jasinski, Alexander"]
[Black "Montes Orozco, Miguel Angel"]
[Result "0-1"]
[ECO "C60"]
[WhiteElo "1981"]
[BlackElo "2152"]
[Annotator "RC"]
[PlyCount "104"]
[EventDate "2024.03.06"]
[EventType "schev"]
[EventCountry "USA"]
[SourceTitle "playchess.com"]
[Source "ChessBase"]
[SourceQuality "1"]
[TimeControl "5400+30"]

1. e4 {[%emt 0:00:02]} e5 {[%emt 0:00:14]} 2. Nf3 {[%emt 0:00:14]} Nc6 {[%emt 0:00:13]} 3. Bb5 {[%emt 0:00:14]} g6 {[%emt 0:01:19]} 4. O-O {[%emt 0:00:18]} Bg7 {[%emt 0:00:06]} 5. Re1 {[%emt 0:00:41]} Nge7 {[%emt 0:02:49]} 6. c3 {[%emt 0:02:13]} a6 {[%emt 0:01:20]} 7. Ba4 {[%emt 0:00:12]} d6 {[%emt 0:00:24]} 8. d4 {[%emt 0:01:11]} b5 {[%emt 0:00:51]} 9. Bb3 {[%emt 0:00:40]} exd4 {[%emt 0:00:30]} 10. cxd4 {[%emt 0:00:53]} O-O {[%emt 0:00:07]} 11. h3 {[%emt 0:05:07]} Na5 {[%emt 0:00:24]} 12. Bc2 {[%emt 0:00:22]} c5 {[%emt 0:00:03]} 13. Nc3 {[%emt 0:01:00]} h6 {[%emt 0:04:25]} 14. Ne2 {[%emt 0:10:21]} Bb7 {[%emt 0:02:14]} 15. Rb1 {[%emt 0:10:10]} Rc8 {[%emt 0:04:34]} 16. a3 {[%emt 0:04:25]} cxd4 {[%emt 1:18:57]} 17. Nexd4 {[%emt 0:01:17]} Qd7 {[%emt 0:00:00]} 18. Bd2 {[%emt 0:00:59]} Nc4 {[%emt 0:00:00]} 19. Bb3 {[%emt 0:02:59]} Rfe8 {[%emt 0:00:00]} 20. Bxc4 {[%emt 0:05:49]} Rxc4 {[%emt 0:00:00]} 21. Bc3 {[%emt 0:00:25]} Nc6 {[%emt 0:00:00]} 22. Nd2 {[%emt 0:17:55]} Rxd4 {[%emt 0:00:00]} 23. Bxd4 {[%emt 0:34:33]} Nxd4 {[%emt 0:00:00]} 24. f3 {[%emt 0:00:00]} Be5 {[%emt 0:00:00]} 25. Nf1 {[%emt 0:00:00]} Qd8 {[%emt 0:00:00]} 26. Qd3 {[%emt 0:00:00]} Qh4 {[%emt 0:00:00]} 27. Rbd1 {[%emt 0:00:00]} Bc8 {[%emt 0:00:00]} 28. Re3 {[%emt 0:00:00]} Be6 {[%emt 0:00:00]} 29. Qd2 {[%emt 0:00:00]} Nb3 {[%emt 0:00:00]} 30. Qe1 {[%emt 0:00:00]} Qg5 {[%emt 0:00:00]} 31. Red3 {[%emt 0:00:00]} Bxh3 {[%emt 0:00:00]} 32. g3 {[%emt 0:00:00]} Nc5 {[%emt 0:00:00]} 33. Rd5 {[%emt 0:00:00]} Be6 {[%emt 0:00:00]} 34. f4 {[%emt 0:00:00]} Qh5 {[%emt 0:00:00]} 35. R5d2 {[%emt 0:00:00]} Bb3 {[%emt 0:00:00]} 36. Rc1 {[%emt 0:00:00]} Bg7 {[%emt 0:00:00]} 37. e5 {[%emt 0:00:00]} Bc4 {[%emt 0:00:00]} 38. Rcd1 {[%emt 0:00:00]} dxe5 {[%emt 0:11:00]} 39. Rd8 {[%emt 0:00:00]} Rxd8 {[%emt 0:00:00]} 40. Rxd8+ {[%emt 0:00:00]} Kh7 {[%emt 0:00:00]} 41. Nd2 {[%emt 0:00:00]} Nd3 {[%emt 0:00:00]} 42. Qf1 {[%emt 0:00:00]} exf4 {[%emt 0:00:00]} 43. Nxc4 {[%emt 0:00:00]} bxc4 {[%emt 0:00:00]} 44. Qxf4 {[%emt 0:00:00]} Nxf4 {[%emt 0:00:00]} 45. gxf4 {[%emt 0:00:00]} Qg4+ {[%emt 0:00:00]} 46. Kh1 {[%emt 0:00:00]} Qh4+ {[%emt 0:00:00]} 47. Kg2 {[%emt 0:00:00]} Qxd8 {[%emt 0:00:00]} 48. Kg1 {[%emt 0:00:00]} Qd2 {[%emt 0:00:00]} 49. f5 {[%emt 0:00:00]} Bd4+ {[%emt 0:00:00]} 50. Kh1 {[%emt 0:00:00]} Qf2 {[%emt 0:00:00]} 51. fxg6+ {[%emt 0:00:00]} Kxg6 {[%emt 0:00:00]} 52. a4 {[%emt 0:00:00]} Qg1# {[%emt 0:07:00]} 0-1